[Event "Titled Tuesday Blitz March 14 Late 2023"]
[White "Martinez Alcantara, Jose Eduardo"]
[Black "Adewumi, Tanitoluwa"]
[WhiteFideId "3805662"]
[BlackFideId "30966396"]
[WhiteElo "2712"]
[BlackElo "2811"]
[Result "1-0"]
[Round "11"]
[TimeControl "180+2"]
[Date "2023.03.14"]
[WhiteClock "0:00:10"]
[BlackClock "0:00:03"]

1. e4 {[%clk 0:02:55]}  c5 {[%clk 0:02:57]} 2. Nf3 {[%clk 0:02:55]}  e6 {[%clk 0:02:56]} 3. c3 {[%clk 0:02:55]}  Nf6 {[%clk 0:02:55]} 4. Bd3 {[%clk 0:02:55]}  Nc6 {[%clk 0:02:54]} 5. Qe2 {[%clk 0:02:52]}  e5 {[%clk 0:02:50]} 6. Bc4 {[%clk 0:02:49]}  Be7 {[%clk 0:02:46]} 7. d3 {[%clk 0:02:49]}  O-O {[%clk 0:02:46]} 8. Bg5 {[%clk 0:02:50]}  h6 {[%clk 0:02:35]} 9. Bxf6 {[%clk 0:02:50]}  Bxf6 {[%clk 0:02:36]} 10. Nbd2 {[%clk 0:02:50]}  d6 {[%clk 0:02:36]} 11. a4 {[%clk 0:02:45]}  Be6 {[%clk 0:02:36]} 12. O-O {[%clk 0:02:45]}  Na5 {[%clk 0:02:36]} 13. Bd5 {[%clk 0:02:43]}  Qd7 {[%clk 0:02:29]} 14. Qd1 {[%clk 0:02:33]}  Rab8 {[%clk 0:02:24]} 15. h3 {[%clk 0:02:22]}  Bd8 {[%clk 0:02:14]} 16. Re1 {[%clk 0:02:19]}  f5 {[%clk 0:02:13]} 17. Rb1 {[%clk 0:01:45]}  Bxd5 {[%clk 0:01:56]} 18. exd5 {[%clk 0:01:45]}  b6 {[%clk 0:01:50]} 19. b4 {[%clk 0:01:44]}  Nb7 {[%clk 0:01:49]} 20. Nc4 {[%clk 0:01:35]}  Bf6 {[%clk 0:01:35]} 21. Qb3 {[%clk 0:01:35]}  Rbe8 {[%clk 0:01:27]} 22. Ncd2 {[%clk 0:01:31]}  g5 {[%clk 0:01:21]} 23. Qc4 {[%clk 0:01:29]}  h5 {[%clk 0:00:47]} 24. Nh2 {[%clk 0:01:29]}  g4 {[%clk 0:00:45]} 25. hxg4 {[%clk 0:01:26]}  hxg4 {[%clk 0:00:46]} 26. Ndf1 {[%clk 0:01:13]}  Kg7 {[%clk 0:00:40]} 27. Qb5 {[%clk 0:00:58]}  Qf7 {[%clk 0:00:34]} 28. a5 {[%clk 0:00:58]}  Qxd5 {[%clk 0:00:20]} 29. Ne3 {[%clk 0:00:51]}  Qe6 {[%clk 0:00:17]} 30. axb6 {[%clk 0:00:52]}  axb6 {[%clk 0:00:16]} 31. Qxb6 {[%clk 0:00:53]}  Rf7 {[%clk 0:00:15]} 32. Qc6 {[%clk 0:00:46]}  Rh8 {[%clk 0:00:12]} 33. g3 {[%clk 0:00:42]}  Bg5 {[%clk 0:00:11]} 34. Nef1 {[%clk 0:00:30]}  f4 {[%clk 0:00:10]} 35. d4 {[%clk 0:00:31]}  fxg3 {[%clk 0:00:07]} 36. fxg3 {[%clk 0:00:31]}  Qf5 {[%clk 0:00:05]} 37. Rb2 {[%clk 0:00:28]}  cxd4 {[%clk 0:00:04]} 38. cxd4 {[%clk 0:00:28]}  exd4 {[%clk 0:00:04]} 39. Qe4 {[%clk 0:00:22]}  d5 {[%clk 0:00:05]} 40. Qxf5 {[%clk 0:00:17]}  Rxf5 {[%clk 0:00:05]} 41. Nxg4 {[%clk 0:00:18]}  Nd6 {[%clk 0:00:05]} 42. Kg2 {[%clk 0:00:15]}  Nc4 {[%clk 0:00:05]} 43. Ra2 {[%clk 0:00:15]}  d3 {[%clk 0:00:05]} 44. Ra7+ {[%clk 0:00:15]}  Rf7 {[%clk 0:00:05]} 45. Rxf7+ {[%clk 0:00:14]}  Kxf7 {[%clk 0:00:06]} 46. Ne5+ {[%clk 0:00:15]}  Kf6 {[%clk 0:00:05]} 47. Nxd3 {[%clk 0:00:15]}  Rb8 {[%clk 0:00:02]} 48. Re2 {[%clk 0:00:16]}  Ra8 {[%clk 0:00:02]} 49. Nh2 {[%clk 0:00:16]}  Ra3 {[%clk 0:00:02]} 50. Ng4+ {[%clk 0:00:13]}  Kf5 {[%clk 0:00:02]} 51. Ndf2 {[%clk 0:00:13]}  Nd6 {[%clk 0:00:01]} 52. Re5+ {[%clk 0:00:12]}  Kg6 {[%clk 0:00:02]} 53. Re6+ {[%clk 0:00:13]}  Kf5 {[%clk 0:00:02]} 54. Rxd6 {[%clk 0:00:13]}  Ra2 {[%clk 0:00:03]} 55. Rxd5+ {[%clk 0:00:13]}  Kg6 {[%clk 0:00:03]} 56. Rd6+ {[%clk 0:00:13]}  Kf5 {[%clk 0:00:03]} 57. b5 {[%clk 0:00:13]}  Be7 {[%clk 0:00:02]} 58. Rd5+ {[%clk 0:00:12]}  Ke6 {[%clk 0:00:02]} 59. Re5+ {[%clk 0:00:13]}  Kd6 {[%clk 0:00:02]} 60. Rf5 {[%clk 0:00:09]}  Bd8 {[%clk 0:00:02]} 61. Kh3 {[%clk 0:00:08]}  Ke6 {[%clk 0:00:03]} 62. Re5+ {[%clk 0:00:08]}  Kf7 {[%clk 0:00:01]} 63. Ne4 {[%clk 0:00:08]}  Bc7 {[%clk 0:00:01]} 64. Rf5+ {[%clk 0:00:09]}  Kg6 {[%clk 0:00:02]} 65. Rf6+ {[%clk 0:00:08]}  Kg7 {[%clk 0:00:02]} 66. Ng5 {[%clk 0:00:08]}  Bd8 {[%clk 0:00:01]} 67. Ne6+ {[%clk 0:00:08]}  Kg8 {[%clk 0:00:01]} 68. Rf8+ {[%clk 0:00:08]}  Kh7 {[%clk 0:00:02]} 69. Rxd8 {[%clk 0:00:09]}  Rb2 {[%clk 0:00:02]} 70. Rd7+ {[%clk 0:00:09]}  Kg6 {[%clk 0:00:02]} 71. Nf4+ {[%clk 0:00:10]}  Kf5 {[%clk 0:00:03]} 72. Rd5+ {[%clk 0:00:09]}  Ke4 {[%clk 0:00:03]} 73. Re5+ {[%clk 0:00:10]}  Kf3 {[%clk 0:00:03]} 74. Re3# {[%clk 0:00:10]} 1-0


[Site "https://www.chess.com"]

[Event "Titled Tuesday Blitz March 14 Late 2023"]
[White "Almeida Quintana, Omar"]
[Black "Kamsky, Gata"]
[WhiteFideId "3503313"]
[BlackFideId "2000024"]
[WhiteElo "2530"]
[BlackElo "2666"]
[Result "0-1"]
[Round "11"]
[TimeControl "180+2"]
[Date "2023.03.14"]
[WhiteClock "0:00:15"]
[BlackClock "0:00:15"]

1. d4 {[%clk 0:03:00]}  f5 {[%clk 0:02:57]} 2. Nc3 {[%clk 0:02:58]}  Nf6 {[%clk 0:02:55]} 3. Bf4 {[%clk 0:02:58]}  d6 {[%clk 0:02:48]} 4. e3 {[%clk 0:02:46]}  Be6 {[%clk 0:02:40]} 5. Bd3 {[%clk 0:02:33]}  c6 {[%clk 0:02:38]} 6. Nge2 {[%clk 0:02:28]}  g6 {[%clk 0:02:36]} 7. f3 {[%clk 0:02:16]}  Bg7 {[%clk 0:02:34]} 8. e4 {[%clk 0:02:16]}  fxe4 {[%clk 0:02:32]} 9. fxe4 {[%clk 0:02:15]}  Qb6 {[%clk 0:02:18]} 10. Qd2 {[%clk 0:02:06]}  Nbd7 {[%clk 0:02:11]} 11. O-O-O {[%clk 0:02:00]}  O-O-O {[%clk 0:01:56]} 12. h3 {[%clk 0:01:58]}  Rhf8 {[%clk 0:01:55]} 13. Rhf1 {[%clk 0:01:57]}  Bg8 {[%clk 0:01:53]} 14. Be3 {[%clk 0:01:52]}  Qa5 {[%clk 0:01:51]} 15. Kb1 {[%clk 0:01:41]}  Kb8 {[%clk 0:01:38]} 16. Nc1 {[%clk 0:01:29]}  Qc7 {[%clk 0:01:25]} 17. Bh6 {[%clk 0:01:27]}  Bxh6 {[%clk 0:01:24]} 18. Qxh6 {[%clk 0:01:28]}  e5 {[%clk 0:01:23]} 19. dxe5 {[%clk 0:01:17]}  Nxe5 {[%clk 0:01:22]} 20. Rf2 {[%clk 0:01:07]}  Nfd7 {[%clk 0:01:20]} 21. Rdf1 {[%clk 0:01:06]}  Rxf2 {[%clk 0:01:19]} 22. Rxf2 {[%clk 0:01:07]}  Qb6 {[%clk 0:01:18]} 23. Rf1 {[%clk 0:01:03]}  a5 {[%clk 0:01:16]} 24. Qh4 {[%clk 0:00:54]}  Re8 {[%clk 0:01:14]} 25. Qf2 {[%clk 0:00:49]}  Qxf2 {[%clk 0:01:13]} 26. Rxf2 {[%clk 0:00:49]}  b5 {[%clk 0:01:13]} 27. N3e2 {[%clk 0:00:44]}  Kc7 {[%clk 0:01:10]} 28. Ng3 {[%clk 0:00:44]}  b4 {[%clk 0:01:08]} 29. b3 {[%clk 0:00:35]}  Nc5 {[%clk 0:01:05]} 30. Be2 {[%clk 0:00:30]}  Ne6 {[%clk 0:01:02]} 31. Nd3 {[%clk 0:00:27]}  Nd4 {[%clk 0:00:53]} 32. Nxe5 {[%clk 0:00:26]}  Rxe5 {[%clk 0:00:50]} 33. Bd3 {[%clk 0:00:26]}  Be6 {[%clk 0:00:47]} 34. Kc1 {[%clk 0:00:26]}  Bd7 {[%clk 0:00:32]} 35. Kd2 {[%clk 0:00:26]}  Re7 {[%clk 0:00:31]} 36. Ne2 {[%clk 0:00:25]}  Ne6 {[%clk 0:00:29]} 37. Nf4 {[%clk 0:00:22]}  Nd8 {[%clk 0:00:26]} 38. h4 {[%clk 0:00:21]}  Nf7 {[%clk 0:00:25]} 39. Ne2 {[%clk 0:00:19]}  Ne5 {[%clk 0:00:25]} 40. Nd4 {[%clk 0:00:19]}  Re8 {[%clk 0:00:24]} 41. Rf4 {[%clk 0:00:18]}  Kb6 {[%clk 0:00:24]} 42. Rf6 {[%clk 0:00:18]}  Kc5 {[%clk 0:00:23]} 43. Nf3 {[%clk 0:00:18]}  Be6 {[%clk 0:00:22]} 44. Nxe5 {[%clk 0:00:18]}  dxe5 {[%clk 0:00:22]} 45. Ke3 {[%clk 0:00:19]}  Re7 {[%clk 0:00:19]} 46. g3 {[%clk 0:00:19]}  Re8 {[%clk 0:00:19]} 47. Kf2 {[%clk 0:00:18]}  Kd4 {[%clk 0:00:18]} 48. Ke2 {[%clk 0:00:18]}  Kc3 {[%clk 0:00:18]} 49. Ke3 {[%clk 0:00:16]}  Kb2 {[%clk 0:00:18]} 50. Ba6 {[%clk 0:00:15]}  Kxa2 {[%clk 0:00:17]} 51. Bb7 {[%clk 0:00:14]}  Kb2 {[%clk 0:00:17]} 52. Bxc6 {[%clk 0:00:13]}  Re7 {[%clk 0:00:17]} 53. Bd5 {[%clk 0:00:13]}  Bxd5 {[%clk 0:00:16]} 54. exd5 {[%clk 0:00:14]}  Kxc2 {[%clk 0:00:17]} 55. Ra6 {[%clk 0:00:13]}  Kxb3 {[%clk 0:00:16]} 56. Rxa5 {[%clk 0:00:12]}  Kc4 {[%clk 0:00:16]} 57. Ke4 {[%clk 0:00:12]}  Rb7 {[%clk 0:00:15]} 58. Ra1 {[%clk 0:00:11]}  b3 {[%clk 0:00:15]} 59. Rc1+ {[%clk 0:00:11]}  Kb4 {[%clk 0:00:15]} 60. d6 {[%clk 0:00:12]}  b2 {[%clk 0:00:15]} 61. Rb1 {[%clk 0:00:13]}  Kc3 {[%clk 0:00:15]} 62. Kxe5 {[%clk 0:00:13]}  Kc2 {[%clk 0:00:14]} 63. Rxb2+ {[%clk 0:00:13]}  Rxb2 {[%clk 0:00:14]} 64. d7 {[%clk 0:00:13]}  Rb8 {[%clk 0:00:13]} 65. Ke6 {[%clk 0:00:14]}  Kd3 {[%clk 0:00:14]} 66. Ke7 {[%clk 0:00:14]}  Ke4 {[%clk 0:00:14]} 67. d8=Q {[%clk 0:00:14]}  Rxd8 {[%clk 0:00:14]} 68. Kxd8 {[%clk 0:00:15]}  Kf3 {[%clk 0:00:15]} 69. Ke7 {[%clk 0:00:15]}  Kxg3 {[%clk 0:00:15]} 0-1


[Site "https://www.chess.com"]

[Event "Titled Tuesday Blitz March 14 Late 2023"]
[White "Kozak, Adam"]
[Black "Garrido Dominguez, Jesus"]
[WhiteFideId "753246"]
[BlackFideId "2254174"]
[WhiteElo "2469"]
[BlackElo "2385"]
[Result "1-0"]
[Round "11"]
[TimeControl "180+2"]
[Date "2023.03.14"]
[WhiteClock "0:02:07"]
[BlackClock "0:02:04"]

1. e4 {[%clk 0:02:44]}  d6 {[%clk 0:02:59]} 2. d4 {[%clk 0:02:42]}  Nf6 {[%clk 0:03:00]} 3. Nc3 {[%clk 0:02:42]}  e5 {[%clk 0:03:00]} 4. Nge2 {[%clk 0:02:42]}  Be7 {[%clk 0:03:00]} 5. h3 {[%clk 0:02:42]}  O-O {[%clk 0:03:00]} 6. Be3 {[%clk 0:02:42]}  d5 {[%clk 0:02:54]} 7. dxe5 {[%clk 0:02:40]}  Nxe4 {[%clk 0:02:54]} 8. Qxd5 {[%clk 0:02:39]}  Nxc3 {[%clk 0:02:31]} 9. Nxc3 {[%clk 0:02:40]}  Nc6 {[%clk 0:02:29]} 10. O-O-O {[%clk 0:02:37]}  Be6 {[%clk 0:02:29]} 11. Qxd8 {[%clk 0:02:34]}  Raxd8 {[%clk 0:02:28]} 12. Rxd8 {[%clk 0:02:32]}  Rxd8 {[%clk 0:02:29]} 13. f4 {[%clk 0:02:31]}  Bb4 {[%clk 0:02:27]} 14. a3 {[%clk 0:02:28]}  Bxc3 {[%clk 0:02:25]} 15. bxc3 {[%clk 0:02:29]}  b6 {[%clk 0:02:24]} 16. Bd3 {[%clk 0:02:26]}  Ne7 {[%clk 0:02:22]} 17. g4 {[%clk 0:02:26]}  Bd5 {[%clk 0:02:17]} 18. Re1 {[%clk 0:02:22]}  Bg2 {[%clk 0:02:16]} 19. Rg1 {[%clk 0:02:21]}  Bb7 {[%clk 0:02:13]} 20. c4 {[%clk 0:02:15]}  Nc6 {[%clk 0:02:08]} 21. Rd1 {[%clk 0:02:08]}  Na5 {[%clk 0:02:04]} 22. Bxh7+ {[%clk 0:02:07]} 1-0


[Site "https://www.chess.com"]

[Event "Titled Tuesday Blitz March 14 Late 2023"]
[White "Chigaev, Maksim"]
[Black "Domingo Nunez, Ruben"]
[WhiteFideId "4108116"]
[BlackFideId "22245570"]
[WhiteElo "2547"]
[BlackElo "2404"]
[Result "0-1"]
[Round "11"]
[TimeControl "180+2"]
[Date "2023.03.14"]
[WhiteClock "0:00:03"]
[BlackClock "0:00:21"]

1. Nf3 {[%clk 0:03:00]}  g6 {[%clk 0:02:59]} 2. g3 {[%clk 0:03:00]}  Bg7 {[%clk 0:03:00]} 3. Bg2 {[%clk 0:03:01]}  Nf6 {[%clk 0:03:00]} 4. O-O {[%clk 0:03:02]}  O-O {[%clk 0:03:01]} 5. c4 {[%clk 0:03:01]}  d6 {[%clk 0:03:02]} 6. Nc3 {[%clk 0:03:01]}  Nbd7 {[%clk 0:03:03]} 7. d3 {[%clk 0:03:01]}  c5 {[%clk 0:03:03]} 8. Rb1 {[%clk 0:03:01]}  Ne8 {[%clk 0:03:04]} 9. a3 {[%clk 0:03:02]}  Nc7 {[%clk 0:03:04]} 10. Bd2 {[%clk 0:03:02]}  Rb8 {[%clk 0:03:05]} 11. b4 {[%clk 0:03:03]}  b6 {[%clk 0:03:05]} 12. Qc1 {[%clk 0:03:03]}  Re8 {[%clk 0:03:06]} 13. Rd1 {[%clk 0:03:02]}  Bb7 {[%clk 0:03:06]} 14. h3 {[%clk 0:03:01]}  Ne6 {[%clk 0:03:06]} 15. e4 {[%clk 0:03:02]}  Nd4 {[%clk 0:03:06]} 16. Nxd4 {[%clk 0:03:02]}  Bxd4 {[%clk 0:03:05]} 17. Nb5 {[%clk 0:03:02]}  Ne5 {[%clk 0:02:48]} 18. Nxd4 {[%clk 0:02:59]}  cxd4 {[%clk 0:02:48]} 19. Be1 {[%clk 0:02:49]}  Nc6 {[%clk 0:02:43]} 20. b5 {[%clk 0:02:46]}  Na5 {[%clk 0:02:41]} 21. f4 {[%clk 0:02:28]}  f6 {[%clk 0:02:41]} 22. g4 {[%clk 0:02:09]}  e5 {[%clk 0:02:41]} 23. Bg3 {[%clk 0:02:10]}  Bc8 {[%clk 0:02:39]} 24. g5 {[%clk 0:02:09]}  Nb7 {[%clk 0:02:12]} 25. Rf1 {[%clk 0:01:51]}  fxg5 {[%clk 0:01:47]} 26. fxg5 {[%clk 0:01:49]}  Nc5 {[%clk 0:01:47]} 27. Qd2 {[%clk 0:01:41]}  Be6 {[%clk 0:01:42]} 28. Rf3 {[%clk 0:01:29]}  Qe7 {[%clk 0:01:37]} 29. Rbf1 {[%clk 0:01:29]}  Rf8 {[%clk 0:01:36]} 30. h4 {[%clk 0:01:12]}  Bg4 {[%clk 0:01:23]} 31. R3f2 {[%clk 0:01:04]}  Rxf2 {[%clk 0:01:20]} 32. Rxf2 {[%clk 0:01:05]}  Rf8 {[%clk 0:01:21]} 33. Bf1 {[%clk 0:00:39]}  Rf3 {[%clk 0:00:56]} 34. Rxf3 {[%clk 0:00:32]}  Bxf3 {[%clk 0:00:57]} 35. Kf2 {[%clk 0:00:19]}  Bxe4 {[%clk 0:00:54]} 36. Kg1 {[%clk 0:00:14]}  Bf5 {[%clk 0:00:54]} 37. Bg2 {[%clk 0:00:06]}  Bxd3 {[%clk 0:00:50]} 38. Bd5+ {[%clk 0:00:05]}  Kg7 {[%clk 0:00:50]} 39. h5 {[%clk 0:00:05]}  gxh5 {[%clk 0:00:49]} 40. Kh2 {[%clk 0:00:06]}  Be4 {[%clk 0:00:48]} 41. Bc6 {[%clk 0:00:03]}  Qf7 {[%clk 0:00:44]} 42. Qd1 {[%clk 0:00:03]}  Kg6 {[%clk 0:00:41]} 43. Qe2 {[%clk 0:00:02]}  Qf5 {[%clk 0:00:39]} 44. Be8+ {[%clk 0:00:02]}  Kg7 {[%clk 0:00:37]} 45. Qxh5 {[%clk 0:00:03]}  Ne6 {[%clk 0:00:23]} 46. Qh6+ {[%clk 0:00:02]}  Kg8 {[%clk 0:00:23]} 47. g6 {[%clk 0:00:02]}  hxg6 {[%clk 0:00:22]} 48. Bxg6 {[%clk 0:00:03]}  Qxg6 {[%clk 0:00:21]} 0-1


[Site "https://www.chess.com"]

[Event "Titled Tuesday Blitz March 14 Late 2023"]
[White "Subelj, Jan"]
[Black "Yuan, Qingyu"]
[WhiteFideId "14618583"]
[BlackFideId "8609772"]
[WhiteElo "2474"]
[BlackElo "2359"]
[Result "1/2-1/2"]
[Round "11"]
[TimeControl "180+2"]
[Date "2023.03.14"]
[WhiteClock "0:00:36"]
[BlackClock "0:00:03"]

1. e4 {[%clk 0:03:00]}  e5 {[%clk 0:03:00]} 2. Nc3 {[%clk 0:02:59]}  Nf6 {[%clk 0:02:59]} 3. f4 {[%clk 0:02:58]}  d5 {[%clk 0:02:59]} 4. fxe5 {[%clk 0:02:58]}  Nxe4 {[%clk 0:02:59]} 5. Qf3 {[%clk 0:02:59]}  Nc6 {[%clk 0:02:58]} 6. Bb5 {[%clk 0:02:57]}  Nxc3 {[%clk 0:02:57]} 7. dxc3 {[%clk 0:02:55]}  Qh4+ {[%clk 0:02:57]} 8. g3 {[%clk 0:02:51]}  Qe4+ {[%clk 0:02:57]} 9. Qxe4 {[%clk 0:02:49]}  dxe4 {[%clk 0:02:58]} 10. Bf4 {[%clk 0:02:38]}  Bd7 {[%clk 0:02:52]} 11. O-O-O {[%clk 0:02:37]}  O-O-O {[%clk 0:02:21]} 12. Bc4 {[%clk 0:02:33]}  Bc5 {[%clk 0:01:19]} 13. Bxf7 {[%clk 0:02:29]}  Bg4 {[%clk 0:01:19]} 14. Re1 {[%clk 0:02:22]}  Bf2 {[%clk 0:01:09]} 15. Rf1 {[%clk 0:02:20]}  e3 {[%clk 0:01:07]} 16. h3 {[%clk 0:02:20]}  Bf5 {[%clk 0:01:07]} 17. Ne2 {[%clk 0:02:16]}  Rd2 {[%clk 0:00:58]} 18. Bxe3 {[%clk 0:02:02]}  Bxe3 {[%clk 0:00:35]} 19. Rxf5 {[%clk 0:01:54]}  Rxe2+ {[%clk 0:00:35]} 20. Kb1 {[%clk 0:01:54]}  g6 {[%clk 0:00:29]} 21. Be6+ {[%clk 0:01:39]}  Kb8 {[%clk 0:00:28]} 22. Rf6 {[%clk 0:01:32]}  Nxe5 {[%clk 0:00:20]} 23. Rhf1 {[%clk 0:01:31]}  a5 {[%clk 0:00:19]} 24. a4 {[%clk 0:01:28]}  Bc5 {[%clk 0:00:18]} 25. Bb3 {[%clk 0:01:26]}  Bd6 {[%clk 0:00:18]} 26. c4 {[%clk 0:01:24]}  Re3 {[%clk 0:00:17]} 27. Re6 {[%clk 0:01:20]}  b6 {[%clk 0:00:17]} 28. Rd1 {[%clk 0:01:03]}  Rxg3 {[%clk 0:00:15]} 29. Rd5 {[%clk 0:01:00]}  Nc6 {[%clk 0:00:14]} 30. c3 {[%clk 0:00:59]}  Rf8 {[%clk 0:00:14]} 31. Ka2 {[%clk 0:00:59]}  Rf2 {[%clk 0:00:14]} 32. Rb5 {[%clk 0:00:59]}  Kb7 {[%clk 0:00:13]} 33. c5 {[%clk 0:00:57]}  Nd8 {[%clk 0:00:04]} 34. Bd5+ {[%clk 0:00:54]}  Kc8 {[%clk 0:00:04]} 35. Re8 {[%clk 0:00:46]}  Bxc5 {[%clk 0:00:04]} 36. Be6+ {[%clk 0:00:45]}  Kb7 {[%clk 0:00:04]} 37. Rxd8 {[%clk 0:00:46]}  c6 {[%clk 0:00:04]} 38. Rd7+ {[%clk 0:00:43]}  Kb8 {[%clk 0:00:04]} 39. Rd8+ {[%clk 0:00:43]}  Kc7 {[%clk 0:00:03]} 40. Rd7+ {[%clk 0:00:43]}  Kb8 {[%clk 0:00:02]} 41. Rd8+ {[%clk 0:00:36]}  Kb7 {[%clk 0:00:03]} 42. Rd7+ {[%clk 0:00:36]}  Kb8 {[%clk 0:00:03]} 1/2-1/2


[Site "https://www.chess.com"]

[Event "Titled Tuesday Blitz March 14 Late 2023"]
[White "Christiansen, Johan-Sebastian"]
[Black "Diaz Perez, Michel Alejandro"]
[WhiteFideId "1512668"]
[BlackFideId "3517179"]
[WhiteElo "2517"]
[BlackElo "2333"]
[Result "1-0"]
[Round "11"]
[TimeControl "180+2"]
[Date "2023.03.14"]
[WhiteClock "0:01:13"]
[BlackClock "0:00:09"]

1. e4 {[%clk 0:03:00]}  c6 {[%clk 0:02:58]} 2. d4 {[%clk 0:03:00]}  d5 {[%clk 0:02:59]} 3. Nd2 {[%clk 0:03:01]}  dxe4 {[%clk 0:02:58]} 4. Nxe4 {[%clk 0:03:02]}  Nd7 {[%clk 0:02:59]} 5. Nf3 {[%clk 0:03:02]}  Ngf6 {[%clk 0:02:59]} 6. Nxf6+ {[%clk 0:03:02]}  Nxf6 {[%clk 0:03:00]} 7. Bc4 {[%clk 0:03:03]}  Bg4 {[%clk 0:03:00]} 8. Bxf7+ {[%clk 0:03:02]}  Kxf7 {[%clk 0:02:54]} 9. Ne5+ {[%clk 0:03:03]}  Kg8 {[%clk 0:02:53]} 10. Nxg4 {[%clk 0:03:04]}  Qa5+ {[%clk 0:02:29]} 11. c3 {[%clk 0:03:04]}  Qb5 {[%clk 0:02:20]} 12. a4 {[%clk 0:03:02]}  Qd5 {[%clk 0:02:02]} 13. O-O {[%clk 0:03:01]}  e6 {[%clk 0:01:59]} 14. Re1 {[%clk 0:03:01]}  Bd6 {[%clk 0:01:56]} 15. b3 {[%clk 0:02:58]}  Qf5 {[%clk 0:01:51]} 16. Nxf6+ {[%clk 0:02:57]}  gxf6 {[%clk 0:01:50]} 17. Qe2 {[%clk 0:02:56]}  Kf7 {[%clk 0:01:50]} 18. Be3 {[%clk 0:02:56]}  Rhg8 {[%clk 0:01:49]} 19. g3 {[%clk 0:02:54]}  h5 {[%clk 0:01:49]} 20. Rad1 {[%clk 0:02:43]}  h4 {[%clk 0:01:39]} 21. Qd3 {[%clk 0:02:44]}  Qh5 {[%clk 0:01:35]} 22. Qe4 {[%clk 0:02:41]}  hxg3 {[%clk 0:01:33]} 23. fxg3 {[%clk 0:02:30]}  Bxg3 {[%clk 0:01:28]} 24. hxg3 {[%clk 0:02:29]}  Rxg3+ {[%clk 0:01:26]} 25. Kf1 {[%clk 0:02:29]}  Rg4 {[%clk 0:01:07]} 26. Qf3 {[%clk 0:02:19]}  Rag8 {[%clk 0:01:07]} 27. Ke2 {[%clk 0:02:14]}  Rg2+ {[%clk 0:01:07]} 28. Bf2 {[%clk 0:02:15]}  Rxf2+ {[%clk 0:01:04]} 29. Kxf2 {[%clk 0:02:14]}  Qh2+ {[%clk 0:01:04]} 30. Ke3 {[%clk 0:02:10]}  Rg3 {[%clk 0:01:05]} 31. Qxg3 {[%clk 0:02:01]}  Qxg3+ {[%clk 0:01:05]} 32. Kd2 {[%clk 0:02:01]}  Qf2+ {[%clk 0:01:02]} 33. Re2 {[%clk 0:02:01]}  Qf3 {[%clk 0:00:57]} 34. Rde1 {[%clk 0:02:01]}  Qd5 {[%clk 0:00:49]} 35. Kc2 {[%clk 0:02:02]}  a5 {[%clk 0:00:46]} 36. Rf2 {[%clk 0:01:52]}  Qg5 {[%clk 0:00:40]} 37. Rfe2 {[%clk 0:01:52]}  Qf5+ {[%clk 0:00:30]} 38. Kb2 {[%clk 0:01:52]}  b5 {[%clk 0:00:30]} 39. axb5 {[%clk 0:01:52]}  cxb5 {[%clk 0:00:31]} 40. Ka3 {[%clk 0:01:42]}  Qd5 {[%clk 0:00:23]} 41. Rd2 {[%clk 0:01:33]}  Qc6 {[%clk 0:00:21]} 42. Kb2 {[%clk 0:01:30]}  f5 {[%clk 0:00:18]} 43. d5 {[%clk 0:01:21]}  exd5 {[%clk 0:00:17]} 44. Re5 {[%clk 0:01:22]}  Kf6 {[%clk 0:00:16]} 45. Rexd5 {[%clk 0:01:22]}  Qe8 {[%clk 0:00:14]} 46. Rd6+ {[%clk 0:01:21]}  Kg5 {[%clk 0:00:14]} 47. Rg2+ {[%clk 0:01:20]}  Kf4 {[%clk 0:00:14]} 48. Rf2+ {[%clk 0:01:19]}  Kg5 {[%clk 0:00:12]} 49. Rd5 {[%clk 0:01:18]}  Qe4 {[%clk 0:00:11]} 50. Rxb5 {[%clk 0:01:15]}  Kg4 {[%clk 0:00:09]} 51. Rbxf5 {[%clk 0:01:13]} 1-0


[Site "https://www.chess.com"]

[Event "Titled Tuesday Blitz March 14 Late 2023"]
[White "Skvortsov, Andrei"]
[Black "Arabidze, Meri"]
[WhiteFideId "24108600"]
[BlackFideId "13604040"]
[WhiteElo "2259"]
[BlackElo "2405"]
[Result "1-0"]
[Round "11"]
[TimeControl "180+2"]
[Date "2023.03.14"]
[WhiteClock "0:02:11"]
[BlackClock "0:00:04"]

1. e4 {[%clk 0:03:00]}  c5 {[%clk 0:03:00]} 2. d4 {[%clk 0:02:59]}  cxd4 {[%clk 0:02:59]} 3. Qxd4 {[%clk 0:03:00]}  Nc6 {[%clk 0:02:58]} 4. Qd3 {[%clk 0:03:01]}  d6 {[%clk 0:02:55]} 5. Nf3 {[%clk 0:03:00]}  Nf6 {[%clk 0:02:55]} 6. Nc3 {[%clk 0:03:00]}  e6 {[%clk 0:02:55]} 7. Bf4 {[%clk 0:02:59]}  Be7 {[%clk 0:02:54]} 8. O-O-O {[%clk 0:02:58]}  e5 {[%clk 0:02:53]} 9. Bg5 {[%clk 0:02:58]}  O-O {[%clk 0:02:36]} 10. Bxf6 {[%clk 0:02:58]}  Bxf6 {[%clk 0:02:37]} 11. Qxd6 {[%clk 0:02:54]}  Be6 {[%clk 0:02:30]} 12. Qxd8 {[%clk 0:02:53]}  Rfxd8 {[%clk 0:02:27]} 13. Bd3 {[%clk 0:02:49]}  Nd4 {[%clk 0:02:24]} 14. Nxd4 {[%clk 0:02:49]}  exd4 {[%clk 0:02:24]} 15. Ne2 {[%clk 0:02:49]}  a5 {[%clk 0:02:17]} 16. a3 {[%clk 0:02:48]}  Rab8 {[%clk 0:01:41]} 17. Bb5 {[%clk 0:02:42]}  Rbc8 {[%clk 0:01:30]} 18. Kb1 {[%clk 0:02:42]}  Rc5 {[%clk 0:01:19]} 19. a4 {[%clk 0:02:38]}  Bc4 {[%clk 0:01:18]} 20. Bxc4 {[%clk 0:02:38]}  Rxc4 {[%clk 0:01:19]} 21. b3 {[%clk 0:02:38]}  Rb4 {[%clk 0:01:15]} 22. Nc1 {[%clk 0:02:37]}  Rb6 {[%clk 0:01:02]} 23. Nd3 {[%clk 0:02:37]}  Be7 {[%clk 0:01:02]} 24. Nb2 {[%clk 0:02:34]}  Bb4 {[%clk 0:00:47]} 25. Rd3 {[%clk 0:02:32]}  Rf6 {[%clk 0:00:39]} 26. f3 {[%clk 0:02:32]}  Bc3 {[%clk 0:00:36]} 27. Rhd1 {[%clk 0:02:31]}  Rc8 {[%clk 0:00:34]} 28. Nc4 {[%clk 0:02:25]}  h5 {[%clk 0:00:34]} 29. Na3 {[%clk 0:02:22]}  Rg6 {[%clk 0:00:27]} 30. g3 {[%clk 0:02:22]}  h4 {[%clk 0:00:27]} 31. f4 {[%clk 0:02:19]}  hxg3 {[%clk 0:00:26]} 32. hxg3 {[%clk 0:02:20]}  Re8 {[%clk 0:00:17]} 33. e5 {[%clk 0:02:19]}  f6 {[%clk 0:00:18]} 34. exf6 {[%clk 0:02:19]}  gxf6 {[%clk 0:00:17]} 35. Nb5 {[%clk 0:02:19]}  Bb4 {[%clk 0:00:16]} 36. Nxd4 {[%clk 0:02:19]}  Rd8 {[%clk 0:00:09]} 37. c3 {[%clk 0:02:15]}  Bc5 {[%clk 0:00:05]} 38. Nf5 {[%clk 0:02:15]}  Rxd3 {[%clk 0:00:05]} 39. Rxd3 {[%clk 0:02:16]}  Bf2 {[%clk 0:00:03]} 40. Ne7+ {[%clk 0:02:15]}  Kf7 {[%clk 0:00:04]} 41. Nxg6 {[%clk 0:02:16]}  Kxg6 {[%clk 0:00:05]} 42. g4 {[%clk 0:02:14]}  Bc5 {[%clk 0:00:04]} 43. Rd5 {[%clk 0:02:13]}  b6 {[%clk 0:00:04]} 44. Rxc5 {[%clk 0:02:10]}  bxc5 {[%clk 0:00:04]} 45. b4 {[%clk 0:02:11]} 1-0


[Site "https://www.chess.com"]